fUST/lending_fUST_20250614
["ID","MTS","AMOUNT","RATE_DAILY","PERIOD"]
[365696441,1749831470474,-237.62205689,0.00021085,10]
[365696442,1749831481011,-231.43373392,0.00019888,2]
[365696443,1749831492640,-175.15,0.00021085,10]
[365696444,1749831497004,-159.94127445,0.00019888,2]
[365696445,1749831503427,-280.69122143,0.00021085,10]
[365696447,1749831524408,181.753084,0.00013699,2]
[365696450,1749831566758,339.77333742,0.00024658,120]
[365696451,1749831571729,200.0,0.0002395,120]
[365696455,1749831609879,-271.0,0.00018,2]
[365696456,1749831631881,200.0,0.00023874,120]
[365696459,1749831751269,200.0,0.00023594,120]
[365696461,1749831784820,1426.59618658,0.0001805,6]
[365696464,1749831871073,200.0,0.00023715,120]
[365696465,1749831902237,2526.73079484,0.0001805,6]
[365696468,1749831915309,2993.98009918,0.000245,120]
[365696477,1749831991077,200.0,0.00024471,120]
[365696483,1749832053348,1478.55577966,0.00024982,120]
[365696484,1749832065612,180.79602587,0.00024982,120]
[365696485,1749832071281,2630.17770366,0.00024982,120]
[365696486,1749832072117,449.73621508,0.000246,120]
[365696488,1749832082973,300.0,0.00017999,2]
[365696489,1749832083544,-173.52088538,0.00018,2]
[365696490,1749832084322,200.0,0.00024982,120]
[365696491,1749832084951,2780.48503412,0.00024982,60]
[365696493,1749832095835,268.90687327,0.00024982,120]
[365696494,1749832098179,543.23823561,0.00024982,120]
[365696495,1749832101971,188.0,0.0002,120]
[365696496,1749832104381,959.57316283,0.00024982,120]
[365696497,1749832104746,913.52868956,0.00024982,120]
[365696498,1749832108050,553.8319092,0.00024982,120]
[365696500,1749832113544,842.61765283,0.00024982,120]
[365696501,1749832114591,686.5378054,0.00024982,120]
[365696502,1749832115974,2972.6353429,0.00024982,60]
[365696503,1749832116084,240.82074905,0.00024982,120]
[365696505,1749832117392,241.5193813,0.00024982,120]
[365696506,1749832117905,2454.33404138,0.00024982,120]
[365696507,1749832118401,1021.55814421,0.00024982,120]
[365696508,1749832118742,2000.0,0.00024982,120]
[365696509,1749832119040,3049.69854085,0.00024982,120]
[365696510,1749832119412,1097.78092698,0.00024982,120]
[365696511,1749832120020,371.26138746,0.00024108,120]
[365696512,1749832121218,2594.42900072,0.00024982,120]
[365696513,1749832121385,1793.11320715,0.00024,120]
[365696514,1749832121447,1131.04623125,0.00024982,60]
[365696515,1749832121676,2539.73192913,0.00024982,120]
[365696517,1749832122279,1089.61789946,0.00024982,120]
[365696518,1749832122690,1004.9110189,0.00024982,120]
[365696519,1749832123043,1429.45951155,0.00024982,120]
[365696520,1749832123122,463.17151393,0.00024982,120]
[365696521,1749832123197,723.36705411,0.00024982,120]
[365696522,1749832123425,3043.48146754,0.00024982,120]
[365696523,1749832123581,1559.25999448,0.00024982,120]
[365696524,1749832124007,308.40813296,0.00024982,120]
[365696525,1749832124299,425.46269708,0.00024982,120]
[365696526,1749832124422,215.35279212,0.00024982,120]
[365696527,1749832124452,611.10112061,0.00024982,120]
[365696528,1749832124485,1605.11814257,0.00024982,120]
[365696530,1749832125067,1147.13530826,0.000245,120]
[365696531,1749832125270,1974.20444948,0.00024982,120]
[365696533,1749832125625,316.1562701,0.00024982,120]
[365696534,1749832125860,203.23134132,0.00024982,120]
[365696535,1749832126289,378.33486598,0.00024,120]
[365696538,1749832127135,1381.04750715,0.00024982,120]
[365696539,1749832127193,669.31462086,0.00024982,120]
[365696540,1749832127394,218.09628184,0.0001536,120]
[365696541,1749832128039,532.78400107,0.00024982,120]
[365696542,1749832128266,210.95623421,0.00024982,120]
[365696544,1749832128477,1266.92514201,0.00024658,120]
[365696545,1749832128759,1009.36870409,0.0002,120]
[365696546,1749832129250,218.82135117,0.00024982,120]
[365696547,1749832129692,207.89821366,0.00024982,120]
[365696548,1749832130256,2551.4001075,0.00024982,120]
[365696549,1749832130297,2533.98816794,0.00024982,120]
[365696550,1749832130336,229.64800131,0.00024,120]
[365696551,1749832130368,500.35760467,0.0002465,120]
[365696552,1749832130398,2973.79603652,0.00024982,120]
[365696553,1749832136363,-137.75204942,0.00018,2]
[365696554,1749832136385,-5486.24795058,0.00018,2]
[365696555,1749832171907,200.0,0.00024313,120]
[365696578,1749832231727,-496.41018663,0.00018,2]
[365696593,1749832231860,-251.65724456,0.00019487,2]
[365696595,1749832231870,-211.377202,0.00019756,2]
[365696597,1749832231880,-382.04845393,0.000199,2]
[365696599,1749832231889,-300.0,0.00019999,2]
[365696601,1749832231899,-300.0,0.00019999,2]
[365696603,1749832231912,-1200.0,0.00019999,2]
[365696605,1749832231921,-31116.89770291,0.0002,2]
[365696607,1749832231930,-461.60141775,0.0002,2]
[365696609,1749832231941,-21422.46894406,0.0002,2]
[365696611,1749832231953,-10963.90069888,0.0002,2]
[365696614,1749832231963,-4609.23722143,0.0002,2]
[365696617,1749832231973,-504298.80912268,0.0002,4]
[365696620,1749832231985,-3968.52391164,0.0002,4]
[365696661,1749832237794,-299.88738122,0.00019999,2]
[365696663,1749832237807,-200.11261878,0.00019999,2]
[365696665,1749832237817,-99.88738122,0.00019999,2]
[365696668,1749832237828,-505.74493743,0.00019999,2]
[365696670,1749832237838,-500.0,0.00019999,2]
[365696672,1749832237847,-353.6175759,0.00019999,2]
[365696674,1749832237857,-500.0,0.00019999,2]
[365696675,1749832237866,-500.0,0.00019999,2]
[365696678,1749832237876,-500.0,0.00019999,2]
[365696680,1749832237886,-500.0,0.00019999,2]
[365696682,1749832237896,-500.0,0.00019999,2]
[365696684,1749832237905,-425.17353034,0.00019999,2]
[365696685,1749832237918,-483.49309631,0.00019999,2]
[365696687,1749832237928,-500.0,0.00019999,2]
[365696690,1749832237938,-500.0,0.00019999,2]
[365696692,1749832237948,-500.0,0.00019999,2]
[365696694,1749832237958,-500.0,0.00019999,2]
[365696696,1749832237967,-500.0,0.00019999,2]
[365696698,1749832237977,-500.0,0.00019999,2]
[365696700,1749832237988,-500.0,0.00019999,2]
[365696702,1749832237999,-509.34126571,0.00019999,2]
[365696704,1749832238009,-500.0,0.00019999,2]
[365696706,1749832238018,-500.0,0.00019999,2]
[365696707,1749832238028,-500.0,0.00019999,2]
[365696709,1749832238037,-500.0,0.00019999,2]
[365696711,1749832238047,-500.0,0.00019999,2]
[365696713,1749832238057,-500.0,0.00019999,2]
[365696715,1749832238067,-500.0,0.00019999,2]
[365696718,1749832238078,-500.0,0.00019999,2]
[365696720,1749832238088,-500.0,0.00019999,2]
[365696722,1749832238098,-43596.70132163,0.0002,4]
[365696724,1749832238113,-32045.69591893,0.0002,4]
[365696727,1749832238131,-6985.86056501,0.0002,4]
[365696730,1749832238148,-70011.06909541,0.0002,4]
[365696746,1749832238295,-817.9200025,0.0002,4]
[365696749,1749832238310,-1508.70755838,0.0002,4]
[365696751,1749832238326,-1960.48509814,0.0002,4]
[365696895,1749832239940,-565.709,0.0002,4]
[365696944,1749832240428,-0.14442981,0.0002,4]
[365696947,1749832240442,-48046.77328188,0.0002,4]
[365697099,1749832242881,-178397.86837781,0.0002,4]
[365697101,1749832242890,-5201.17779645,0.0002,2]
[365697103,1749832242900,-4000.0,0.0002,4]
[365697110,1749832243112,-1109.74568137,0.00020079,2]
[365697112,1749832243143,-203.72,0.0002008,2]
[365697113,1749832243153,-152.18592288,0.0002008,2]
[365697114,1749832243164,-300.0,0.00020089,2]
[365697115,1749832243174,-20795.8885829,0.0002009,2]
[365697117,1749832243184,-829.84123786,0.00020554,2]
[365697119,1749832243194,-580.70614439,0.000206,3]
[365697120,1749832243204,-580.70614411,0.000206,3]
[365697121,1749832243214,-580.70614411,0.000206,3]
[365697123,1749832243225,-580.70614411,0.000206,3]
[365697125,1749832243235,-580.70614411,0.000206,3]
[365697127,1749832243244,-382.0484539,0.00020612,2]
[365697129,1749832243256,-580.70614411,0.00020762,3]
[365697130,1749832243266,-580.70614411,0.00020934,4]
[365697131,1749832243275,-500.0,0.00020964,2]
[365697132,1749832243284,-4000.0,0.00021,4]
[365697133,1749832243293,-211.896,0.00021085,2]
[365697134,1749832243303,-460.0,0.00021095,4]
[365697135,1749832243313,-380.0,0.00021095,4]
[365697136,1749832243322,-420.0,0.00021095,4]
[365697137,1749832243331,-300.0,0.00021095,4]
[365697138,1749832243342,-333.04254253,0.00021095,4]
[365697139,1749832243352,-440.0,0.00021095,4]
[365697140,1749832243361,-440.0,0.00021095,4]
[365697141,1749832243371,-460.0,0.00021095,4]
[365697142,1749832243382,-388.97794139,0.00021095,4]
[365697143,1749832243391,-420.0,0.00021095,4]
[365697144,1749832243402,-460.0,0.00021095,4]
[365697145,1749832243411,-460.0,0.00021095,4]
[365697146,1749832243420,-460.0,0.00021095,4]
[365697147,1749832243430,-460.0,0.00021095,4]
[365697148,1749832243439,-460.0,0.00021095,4]
[365697149,1749832243449,-460.0,0.00021095,4]
[365697150,1749832243459,-460.0,0.00021095,4]
[365697151,1749832243468,-460.0,0.00021095,4]
[365697152,1749832243479,-460.0,0.00021095,4]
[365697153,1749832243488,-460.0,0.00021095,4]
[365697154,1749832243498,-460.0,0.00021095,4]
[365697155,1749832243508,-460.0,0.00021095,4]
[365697156,1749832243518,-460.0,0.00021095,4]
[365697157,1749832243527,-460.0,0.00021095,4]
[365697158,1749832243537,-420.0,0.00021095,4]
[365697159,1749832243547,-460.0,0.00021095,4]
[365697160,1749832243556,-460.0,0.00021095,4]
[365697161,1749832243566,-460.0,0.00021095,4]
[365697162,1749832243577,-280.0,0.00021095,4]
[365697163,1749832243587,-577.51,0.00021095,4]
[365697164,1749832243596,-355.60490511,0.00021095,4]
[365697165,1749832243605,-460.0,0.00021095,4]
[365697166,1749832243615,-420.0,0.00021095,4]
[365697167,1749832243625,-460.0,0.00021095,4]
[365697168,1749832243634,-460.0,0.00021095,4]
[365697169,1749832243643,-460.0,0.00021095,4]
[365697170,1749832243653,-3020.35,0.00021095,4]
[365697171,1749832243664,-460.0,0.00021095,4]
[365697172,1749832243673,-498.98,0.00021095,4]
[365697173,1749832243683,-460.0,0.00021095,4]
[365697174,1749832243693,-460.0,0.00021095,4]
[365697175,1749832243703,-460.0,0.00021095,4]
[365697176,1749832243714,-460.0,0.00021095,4]
[365697177,1749832243723,-460.0,0.00021095,4]
[365697178,1749832243732,-230.93154517,0.00021095,4]
[365697179,1749832243741,-1225.09,0.00021095,4]
[365697180,1749832243752,-460.0,0.00021095,4]
[365697181,1749832243762,-212.44166662,0.00021095,4]
[365697182,1749832243773,-460.0,0.00021095,4]
[365697183,1749832243783,-1813.11,0.00021095,4]
[365697184,1749832243793,-440.0,0.00021095,4]
[365697185,1749832243802,-460.0,0.00021095,4]
[365697186,1749832243812,-258.29523553,0.00021095,4]
[365697227,1749832245911,-201.70476447,0.00021095,4]
[365697228,1749832245922,-460.0,0.00021095,4]
[365697229,1749832245932,-758.10755118,0.00021095,4]
[365697230,1749832245966,-481.81244882,0.00021095,4]
[365697231,1749832245980,-2618.16,0.00021095,4]
[365697232,1749832245991,-585.04,0.00021095,4]
[365697233,1749832246003,-440.0,0.00021095,4]
[365697234,1749832246013,-192.97473504,0.00021095,4]
[365697235,1749832246023,-460.0,0.00021095,4]
[365697236,1749832246033,-460.0,0.00021095,4]
[365697237,1749832246043,-460.0,0.00021095,4]
[365697238,1749832246053,-907.78,0.00021095,4]
[365697239,1749832246063,-460.0,0.00021095,4]
[365697240,1749832246073,-1345.55,0.00021095,4]
[365697241,1749832246083,-460.0,0.00021095,4]
[365697242,1749832246092,-801.79,0.00021095,4]
[365697243,1749832246105,-400.17634307,0.00021095,4]
[365697244,1749832246115,-500.0,0.00021095,4]
[365697245,1749832246125,-460.0,0.00021095,4]
[365697246,1749832246136,-460.0,0.00021095,4]
[365697247,1749832246146,-460.0,0.00021095,4]
[365697248,1749832246156,-460.0,0.00021095,4]
[365697249,1749832246166,-460.0,0.00021095,4]
[365697250,1749832246177,-460.0,0.00021095,4]
[365697251,1749832246188,-682.0,0.00021095,4]
[365697252,1749832246198,-2953.88,0.00021095,4]
[365697253,1749832246208,-460.0,0.00021095,4]
[365697254,1749832246218,-460.0,0.00021095,4]
[365697255,1749832246228,-460.0,0.00021095,4]
[365697256,1749832246237,-277.87674849,0.00021095,4]
[365697257,1749832246247,-460.0,0.00021095,4]
[365697258,1749832246257,-460.0,0.00021095,4]
[365697259,1749832246267,-460.0,0.00021095,4]
[365697260,1749832246277,-460.0,0.00021095,4]
[365697261,1749832246287,-1115.85,0.00021095,4]
[365697262,1749832246297,-460.0,0.00021095,4]
[365697263,1749832246307,-460.0,0.00021095,4]
[365697264,1749832246317,-460.0,0.00021095,4]
[365697265,1749832246327,-460.0,0.00021095,4]
[365697266,1749832246336,-460.0,0.00021095,4]
[365697267,1749832246346,-460.0,0.00021095,4]
[365697268,1749832246356,-300.0,0.00021095,4]
[365697269,1749832246365,-482.32,0.00021095,4]
[365697270,1749832246375,-2087.07,0.00021095,4]
[365697271,1749832246384,-460.0,0.00021095,4]
[365697272,1749832246394,-460.0,0.00021095,4]
[365697273,1749832246404,-460.0,0.00021095,4]
[365697274,1749832246413,-460.0,0.00021095,4]
[365697275,1749832246423,-867.62,0.00021095,4]
[365697276,1749832246433,-460.0,0.00021095,4]
[365697277,1749832246444,-460.0,0.00021095,4]
[365697278,1749832246454,-547.2,0.00021095,4]
[365697279,1749832246465,-460.0,0.00021095,4]
[365697280,1749832246474,-1547.33623333,0.00021095,4]
[365697281,1749832246526,-646.82376667,0.00021095,4]
[365697282,1749832246535,-4769.46,0.00021095,4]
[365697283,1749832246546,-2141.72,0.00021095,4]
[365697284,1749832246556,-460.0,0.00021095,4]
[365697285,1749832246566,-460.0,0.00021095,2]
[365697286,1749832246576,-460.0,0.00021095,4]
[365697287,1749832246585,-460.0,0.00021095,4]
[365697288,1749832246595,-460.0,0.00021095,4]
[365697289,1749832246605,-460.0,0.00021095,4]
[365697290,1749832246615,-440.0,0.00021095,4]
[365697291,1749832246624,-460.0,0.00021095,4]
[365697292,1749832246634,-1177.61678562,0.00021095,4]
[365697293,1749832246656,-706.59763503,0.00021095,4]
[365697294,1749832246669,-748.90557935,0.00021095,4]
[365697295,1749832246678,-460.0,0.00021095,4]
[365697296,1749832246688,-460.0,0.00021095,4]
[365697297,1749832246698,-460.0,0.00021095,4]
[365697298,1749832246707,-460.0,0.00021095,4]
[365697299,1749832246717,-460.0,0.00021095,4]
[365697300,1749832246726,-460.0,0.00021095,4]
[365697301,1749832246736,-460.0,0.00021095,4]
[365697302,1749832246746,-410.0,0.00021095,4]
[365697303,1749832246756,-430.0,0.00021095,4]
[365697304,1749832246765,-1054.23,0.00021095,4]
[365697305,1749832246775,-580.70614411,0.00021107,4]
[365697306,1749832246785,-553.47804641,0.00021269,2]
[365697307,1749832246794,-580.70614411,0.00021279,5]
[365697308,1749832246804,-382.0484539,0.00021323,2]
[365697309,1749832246813,-1181.18,0.00021359,3]
[365697310,1749832246823,-590.59,0.00021359,3]
[365697311,1749832246833,-295.3,0.00021359,3]
[365697312,1749832246842,-885.91,0.00021359,3]
[365697313,1749832246852,-536.81276193,0.00021366,2]
[365697314,1749832246861,-316.12744739,0.00021369,4]
[365697322,1749832256911,3800.0,0.00024658,120]
[365697323,1749832326439,-300.0,0.00019998,2]
[365697324,1749832366846,582.84775397,0.00018995,2]
[365697326,1749832427407,546.3,0.00024982,60]
[365697327,1749832442044,1711.95,0.00024982,60]
[365697328,1749832472544,200.0,0.00024053,120]
[365697333,1749832518106,181.753084,0.00013699,2]
[365697341,1749832550930,2000.0,0.0002006,120]
[365697352,1749832582227,999.96,0.00016,10]
[365697355,1749832591108,200.0,0.00024233,120]
[365697368,1749832662204,500.0,0.00024962,120]
[365697370,1749832669694,500.0,0.00024962,120]
[365697373,1749832676456,500.0,0.00024962,120]
[365697376,1749832684684,500.0,0.00024962,120]
[365697378,1749832691618,500.0,0.00024962,120]
[365697381,1749832699001,500.0,0.00024962,120]
[365697383,1749832705757,500.0,0.00024962,120]
[365697390,1749832736901,500.0,0.00024962,120]
[365697392,1749832742829,500.0,0.00024962,120]
[365697394,1749832749799,500.0,0.00024969,120]
[365697395,1749832756330,500.0,0.00024969,120]
[365697399,1749832775339,-1482.04655567,0.00018805,6]
[365697400,1749832775361,-357.95344433,0.00018995,2]
[365697408,1749832804486,198.74583,0.00024969,120]
[365697418,1749832831649,200.0,0.0002388,120]
[365697430,1749832892043,200.0,0.00024529,120]
[365697435,1749832971511,-269.24735453,0.00018995,2]
[365697436,1749832971536,-170.75264547,0.00019,2]
[365697437,1749833131315,200.0,0.00024589,120]
[365697438,1749833210599,1057.0,0.0002497,120]
[365697443,1749833311382,200.0,0.00024004,120]
[365697480,1749833432072,-229.24735453,0.00019,2]
[365697481,1749833432084,-1200.0,0.00019691,2]
[365697482,1749833432096,-3220.42535622,0.00019692,2]
[365697483,1749833432136,-3990.57158907,0.00019692,2]
[365697485,1749833432150,-745.66726665,0.00019692,2]
[365697704,1749833438045,-16121.69899426,0.00019692,2]
[365697707,1749833438055,-211.377202,0.00019818,2]
[365697709,1749833438065,-566.5291037,0.00019822,2]
[365697711,1749833438074,-151.0,0.00019998,2]
[365697713,1749833438084,-151.0,0.00019998,2]
[365697715,1749833438093,-158.663397,0.0002005,2]
[365697716,1749833438103,-16000.0,0.00020217,2]
[365697717,1749833438112,-393.10238177,0.00020217,2]
[365697719,1749833438121,-300.0,0.00020228,2]
[365697721,1749833438130,-16000.0,0.00020765,2]
[365697723,1749833438139,-729.29325,0.000209,2]
[365697725,1749833438148,-500.0,0.00020964,2]
[365697727,1749833438157,-980.55356571,0.00020995,2]
[365697729,1749833438166,-164.502,0.00021038,2]
[365697731,1749833438175,-442.62766673,0.00021062,2]
[365697733,1749833438184,-946.14,0.00021085,3]
[365697735,1749833438193,-473.07,0.00021085,3]
[365697737,1749833438202,-236.53,0.00021085,3]
[365697739,1749833438212,-709.64,0.00021085,3]
[365697741,1749833438221,-1512.76,0.00021085,10]
[365697743,1749833438231,-1260.64,0.00021085,10]
[365697745,1749833438240,-1050.53,0.00021085,10]
[365697747,1749833438250,-500.0,0.00021093,2]
[365697749,1749833438259,-545.7500737,0.00021093,2]
[365697751,1749833438268,-500.0,0.00021093,2]
[365697753,1749833438280,-500.0,0.00021093,2]
[365697755,1749833438290,-500.0,0.00021093,2]
[365697757,1749833438302,-500.0,0.00021093,2]
[365697759,1749833438312,-500.0,0.00021093,2]
[365697761,1749833438321,-500.0,0.00021093,2]
[365697763,1749833438332,-500.0,0.00021094,2]
[365697765,1749833438343,-170.26,0.00021094,2]
[365697767,1749833438352,-500.0,0.00021094,2]
[365697769,1749833438362,-500.0,0.00021094,2]
[365697771,1749833438373,-500.0,0.00021094,2]
[365697773,1749833438383,-500.0,0.00021094,2]
[365697775,1749833438394,-287.52435232,0.00021094,2]
[365697777,1749833438403,-500.0,0.00021094,2]
[365697779,1749833438414,-500.0,0.00021094,2]
[365697781,1749833438423,-500.0,0.00021094,2]
[365697783,1749833438433,-500.0,0.00021094,2]
[365697785,1749833438443,-500.0,0.00021094,2]
[365697787,1749833438452,-261.70357096,0.00021094,2]
[365697789,1749833438462,-400.0,0.00021095,4]
[365697791,1749833438472,-178.79171177,0.00021095,4]
[365697793,1749833438481,-400.0,0.00021095,4]
[365697795,1749833438491,-460.0,0.00021095,4]
[365697797,1749833438501,-424.75716097,0.00021095,4]
[365697799,1749833438510,-460.0,0.00021095,4]
[365697801,1749833438520,-173.42711299,0.00021095,4]
[365697803,1749833438532,-460.0,0.00021095,4]
[365697805,1749833438542,-460.0,0.00021095,4]
[365697807,1749833438551,-460.0,0.00021095,4]
[365697809,1749833438561,-460.0,0.00021095,4]
[365697811,1749833438570,-460.0,0.00021095,4]
[365697813,1749833438579,-319.73989259,0.00021095,4]
[365697815,1749833438588,-327.48998091,0.00021095,4]
[365697817,1749833438598,-460.0,0.00021095,4]
[365697819,1749833438608,-315.21830925,0.00021095,4]
[365697821,1749833438618,-400.0,0.00021095,4]
[365697823,1749833438627,-460.0,0.00021095,4]
[365697825,1749833438637,-460.0,0.00021095,4]
[365697827,1749833438647,-460.0,0.00021095,4]
[365697829,1749833438656,-460.0,0.00021095,4]
[365697831,1749833438667,-460.0,0.00021095,4]
[365697833,1749833438676,-460.0,0.00021095,4]
[365697835,1749833438685,-460.0,0.00021095,4]
[365697838,1749833438694,-602.29166958,0.00021095,4]
[365697840,1749833438704,-460.0,0.00021095,4]
[365697841,1749833438714,-460.0,0.00021095,4]
[365697843,1749833438723,-460.0,0.00021095,4]
[365697845,1749833438732,-368.88550851,0.00021095,4]
[365697847,1749833438741,-460.0,0.00021095,4]
[365697850,1749833438751,-460.0,0.00021095,4]
[365697852,1749833438761,-460.0,0.00021095,4]
[365697854,1749833438770,-460.0,0.00021095,4]
[365697856,1749833438782,-460.0,0.00021095,4]
[365697857,1749833438791,-460.0,0.00021095,4]
[365697860,1749833438801,-460.0,0.00021095,4]
[365697862,1749833438812,-460.0,0.00021095,4]
[365697864,1749833438822,-286.65482973,0.00021095,4]
[365697866,1749833438831,-571.51,0.00021095,2]
[365697868,1749833438840,-460.0,0.00021095,4]
[365697870,1749833438849,-460.0,0.00021095,4]
[365697871,1749833438859,-460.0,0.00021095,4]
[365697873,1749833438868,-440.0,0.00021095,4]
[365697875,1749833438878,-460.0,0.00021095,4]
[365697877,1749833438888,-460.0,0.00021095,4]
[365697879,1749833438897,-460.0,0.00021095,4]
[365697882,1749833438907,-200.0,0.00021095,10]
[365697884,1749833438916,-200.0,0.00021095,10]
[365697886,1749833438926,-200.0,0.00021095,10]
[365697888,1749833438935,-200.0,0.00021095,10]
[365697890,1749833438945,-460.0,0.00021095,4]
[365697892,1749833438955,-200.0,0.00021095,10]
[365697894,1749833438964,-200.0,0.00021095,10]
[365697896,1749833438974,-200.0,0.00021095,10]
[365697898,1749833438983,-354.52077861,0.00021095,4]
[365697900,1749833438993,-400.0,0.00021095,4]
[365697902,1749833439003,-200.0,0.00021095,10]
[365697904,1749833439012,-200.0,0.00021095,10]
[365697906,1749833439021,-200.0,0.00021095,10]
[365697908,1749833439032,-200.0,0.00021095,10]
[365697910,1749833439042,-200.0,0.00021095,10]
[365697911,1749833439051,-200.0,0.00021095,10]
[365697912,1749833439061,-200.0,0.00021095,10]
[365697913,1749833439071,-200.0,0.00021095,10]
[365697914,1749833439080,-200.0,0.00021095,10]
[365697915,1749833439090,-200.0,0.00021095,10]
[365697916,1749833439099,-200.0,0.00021095,10]
[365697917,1749833439109,-200.0,0.00021095,10]
[365697918,1749833439118,-460.0,0.00021095,4]
[365697919,1749833439128,-200.0,0.00021095,10]
[365697920,1749833439137,-200.0,0.00021095,10]
[365697921,1749833439146,-200.0,0.00021095,10]
[365697922,1749833439155,-200.0,0.00021095,10]
[365697923,1749833439165,-200.0,0.00021095,10]
[365697924,1749833439174,-200.0,0.00021095,10]
[365697925,1749833439183,-200.0,0.00021095,10]
[365697926,1749833439193,-200.0,0.00021095,10]
[365697927,1749833439203,-200.0,0.00021095,10]
[365697928,1749833439212,-200.0,0.00021095,10]
[365697929,1749833439222,-200.0,0.00021095,10]
[365697930,1749833439231,-200.0,0.00021095,10]
[365697931,1749833439240,-200.0,0.00021095,10]
[365697932,1749833439249,-200.0,0.00021095,10]
[365697933,1749833439259,-200.0,0.00021095,10]
[365697934,1749833439268,-200.0,0.00021095,10]
[365697935,1749833439278,-460.0,0.00021095,4]
[365697936,1749833439287,-200.0,0.00021095,10]
[365697937,1749833439298,-200.0,0.00021095,10]
[365697938,1749833439309,-200.0,0.00021095,10]
[365697939,1749833439319,-200.0,0.00021095,10]
[365697940,1749833439328,-200.0,0.00021095,10]
[365697941,1749833439339,-200.0,0.00021095,10]
[365697942,1749833439348,-200.0,0.00021095,10]
[365697943,1749833439358,-200.0,0.00021095,10]
[365697944,1749833439367,-200.0,0.00021095,10]
[365697945,1749833439378,-200.0,0.00021095,10]
[365697946,1749833439387,-200.0,0.00021095,10]
[365697947,1749833439396,-200.0,0.00021095,10]
[365697948,1749833439407,-200.0,0.00021095,10]
[365697949,1749833439416,-200.0,0.00021095,10]
[365697950,1749833439426,-200.0,0.00021095,10]
[365697951,1749833439435,-200.0,0.00021095,10]
[365697952,1749833439456,-200.0,0.00021095,10]
[365697953,1749833439467,-226.172,0.00021095,4]
[365697954,1749833439478,-200.0,0.00021095,10]
[365697955,1749833439488,-200.0,0.00021095,10]
[365697956,1749833439498,-200.0,0.00021095,10]
[365697957,1749833439507,-200.0,0.00021095,10]
[365697958,1749833439517,-200.0,0.00021095,10]
[365697959,1749833439527,-200.0,0.00021095,10]
[365697960,1749833439536,-200.0,0.00021095,10]
[365697962,1749833439546,-200.0,0.00021095,10]
[365697963,1749833439556,-200.0,0.00021095,10]
[365697964,1749833439566,-200.0,0.00021095,10]
[365697965,1749833439576,-200.0,0.00021095,10]
[365697966,1749833439586,-200.0,0.00021095,10]
[365697967,1749833439596,-200.0,0.00021095,10]
[365697968,1749833439605,-300.342831,0.00021095,10]
[365697969,1749833439615,-460.0,0.00021095,4]
[365697970,1749833439625,-460.0,0.00021095,4]
[365697971,1749833439634,-460.0,0.00021095,4]
[365697972,1749833439644,-460.0,0.00021095,4]
[365697973,1749833439654,-326.17912673,0.00021095,4]
[365697974,1749833439671,-83.92170807,0.00021095,4]
[365697975,1749833439681,-460.0,0.00021095,4]
[365697976,1749833439691,-272.65519947,0.00021095,4]
[365697977,1749833439701,-400.0,0.00021095,4]